bitfinex-derivatives/quotes_ETHF0:USTF0_20250214
["timestamp","ask_amount","ask_price","bid_price","bid_amount"]
[1739555544236,8.04e-06,2774.0,2773.4,3.2078]
[1739555544432,8.04e-06,2774.0,2773.9,0.72089]
[1739555544630,40.80000804,2774.0,2773.9,0.72089]
[1739555544936,0.72089,2773.9,2773.8,0.72092]
[1739555545132,0.72089,2773.9,2773.4,3.2078]
[1739555545133,40.80000804,2774.0,2773.4,3.2078]
[1739555545332,0.72096,2773.7,2773.5,0.72099]
[1739555545528,40.80000804,2774.0,2773.4,3.2078]
[1739555545729,0.72094,2773.8,2773.6,0.72097]
[1739555546038,0.72091,2773.9,2773.4,3.2078]
[1739555546239,40.80000804,2774.0,2773.8,0.72091]
[1739555546424,41.52088804,2774.0,2773.8,0.72091]
[1739555546631,0.72106,2773.3,2773.1,3.2078]
[1739555546831,7.00440797,2773.6,2773.3,0.72104]
[1739555547136,0.72107,2773.3,2773.1,0.72109]
[1739555547631,0.72108,2773.2,2773.1,0.72109]
[1739555547837,3.92884,2773.4,2773.2,0.72106]
[1739555548137,3.2078,2773.4,2773.0,0.00540804]
[1739555548338,0.7211,2773.1,2773.0,0.00540804]
[1739555548531,40.8,2773.3,2773.1,0.7211]
[1739555548532,0.72109,2773.2,2773.1,0.7211]
[1739555548729,40.8,2773.3,2773.1,0.7211]
[1739555548940,40.8,2773.3,2773.1,0.72109]
[1739555549238,40.8,2773.3,2773.2,0.72108]
[1739555549930,40.8,2773.3,2773.0,0.00540804]
[1739555550240,40.8,2773.3,2773.2,0.72108]
[1739555550733,2.0532,2773.9,2773.1,3.2078]
[1739555551045,0.72099,2773.6,2773.4,0.72102]
[1739555551340,40.8,2773.5,2773.4,0.72102]
[1739555553034,40.8,2773.5,2773.0,0.00540804]
[1739555553035,44.0078,2773.5,2773.0,0.00540804]
[1739555553237,40.8,2773.5,2773.4,0.72102]
[1739555553736,1.0663,2773.9,2773.4,0.72102]
[1739555553938,1.0361,2774.9,2773.7,3.2078]
[1739555554140,3.2078,2775.4,2775.3,0.72053]
[1739555554443,40.8,2775.4,2775.3,0.72053]
[1739555554742,40.8,2775.4,2775.0,3.2078]
[1739555555233,0.72057,2775.2,2774.9,0.72602804]
[1739555555442,0.72054,2775.3,2774.9,0.00540804]
[1739555555747,44.0078,2775.4,2774.9,0.00540804]
[1739555556040,44.0078,2775.4,2775.1,0.72057]
[1739555556441,44.0078,2775.4,2774.9,0.00540804]
[1739555556642,44.0078,2775.4,2775.1,0.72057]
[1739555556838,44.0078,2775.4,2774.9,0.00540804]
[1739555557034,44.72831,2775.4,2774.9,0.00540804]
[1739555557238,44.0078,2775.4,2774.9,0.00540804]
[1739555557539,44.0078,2775.4,2775.1,0.72056]
[1739555557739,44.0078,2775.4,2775.0,3.2078]
[1739555558134,44.0078,2775.4,2775.1,0.72058]
[1739555558337,44.0078,2775.4,2774.9,0.00540804]
[1739555559040,44.0078,2775.4,2775.3,0.72053]
[1739555559243,40.8,2775.4,2775.3,0.72053]
[1739555559629,40.8,2775.4,2775.0,3.2078]
[1739555559630,40.8,2775.4,2775.1,0.72057]
[1739555559939,40.8,2775.4,2775.2,0.72054]
[1739555560137,40.8,2775.4,2775.0,3.2078]
[1739555560442,40.8,2775.4,2775.3,0.72053]
[1739555561540,40.8,2775.4,2775.3,3.92833]
[1739555561735,0.00540804,2775.5,2775.4,0.7205]
[1739555564838,40.80540804,2775.5,2775.4,0.7205]
[1739555565039,0.72018,2776.7,2776.0,1.80086]
[1739555565251,4.2059,2777.1,2775.9,5.3028]
[1739555565439,0.72013,2776.9,2776.7,0.72016]
[1739555565742,0.7202,2776.6,2775.9,5.3028]
[1739555565940,40.8,2776.6,2775.9,5.3028]
[1739555566142,0.00540804,2776.5,2776.4,0.72023]
[1739555566342,0.00540804,2776.5,2776.3,0.72025]
[1739555566542,0.00540804,2776.5,2776.4,0.72024]
[1739555567041,0.72026,2776.4,2776.2,0.72027]
[1739555567242,0.72032,2776.1,2776.0,0.00540804]
[1739555567939,41.52032,2776.1,2776.0,0.72574804]
[1739555568140,40.8,2776.1,2776.0,0.00540804]
[1739555568446,40.8,2776.1,2776.0,0.72575804]
[1739555572244,0.00540804,2776.5,2776.0,0.72575804]
[1739555572443,0.00540804,2776.5,2776.4,0.72024]
[1739555572838,40.80540804,2776.5,2776.4,0.72024]
[1739555573043,40.80540804,2776.5,2776.4,3.92804]
[1739555573543,7.32093245,2777.6,2776.7,1.8004]
[1739555573544,0.72003,2777.3,2776.7,1.8004]
[1739555573738,0.72003,2777.3,2776.7,5.0082]
[1739555573939,5.52108245,2777.6,2776.7,5.0082]
[1739555574137,5.52108245,2777.6,2777.3,0.71999]
[1739555574337,3.45408245,2777.6,2776.7,5.2718]
[1739555574539,0.71996,2777.5,2776.9,1.80026]
[1739555574740,40.8,2777.2,2777.1,0.72006]
[1739555575146,40.8,2777.2,2776.6,1.80048]
[1739555575147,40.8,2777.2,2777.0,3.2078]
[1739555575345,44.25408245,2777.2,2776.3,3.2078]
[1739555575545,0.72007,2777.1,2777.0,0.72008]
[1739555575844,44.97413245,2777.2,2777.0,0.72007]
[1739555576150,40.8,2777.2,2776.3,3.2078]
[1739555576352,44.25408245,2777.2,2776.3,3.2078]
[1739555576649,0.72012,2776.9,2776.7,0.72015]
[1739555577151,3.2078,2777.1,2776.7,0.72015]
[1739555577349,0.72014,2776.8,2776.7,0.72015]
[1739555577743,0.72014,2776.8,2776.3,3.2078]
[1739555577744,3.2078,2777.1,2776.3,3.2078]
[1739555578145,0.72012,2776.9,2776.7,0.72014]
[1739555578338,3.2078,2777.1,2776.3,3.2078]
[1739555578539,0.72019,2776.7,2776.5,0.72022]
[1739555578742,3.2078,2777.1,2776.3,3.2078]
[1739555578944,0.72018,2776.7,2776.3,3.2078]
[1739555579246,0.72015,2776.8,2776.6,0.72017]
[1739555579444,3.2078,2777.1,2776.3,3.2078]
[1739555579647,44.25408245,2777.2,2776.3,3.2078]
[1739555579648,0.72023,2776.5,2776.4,0.72024]
[1739555579949,6.66188245,2777.2,2776.3,3.2078]
[1739555580150,0.72019,2776.7,2776.5,0.7202]
[1739555580346,3.2078,2776.8,2776.3,3.2078]
[1739555580649,3.2078,2776.8,2776.4,0.72022]
[1739555580850,40.8,2776.5,2776.4,0.72024]
[1739555581046,3.2078,2777.1,2776.5,1.80049]
[1739555581252,3.2078,2777.1,2776.4,1.80062]
[1739555581547,0.72012,2776.9,2776.3,3.2078]
[1739555581750,0.72011,2777.0,2776.4,1.80059]
[1739555581951,44.0078,2777.1,2776.5,1.80055]
[1739555582151,44.0078,2777.1,2776.6,3.2078]
[1739555582457,0.72013,2776.9,2776.8,0.72013]
[1739555582646,0.72015,2776.8,2776.7,0.72015]
[1739555582852,0.72013,2776.9,2776.8,0.72013]
[1739555583451,0.72016,2776.8,2776.3,3.2078]
[1739555583757,0.72016,2776.8,2776.7,0.72017]
[1739555584246,3.45408245,2776.9,2776.3,3.2078]
[1739555584453,1.76366,2776.8,2776.7,0.72017]
[1739555584650,1.76366,2776.8,2776.0,0.00540804]
[1739555584651,0.72032,2776.1,2776.0,0.00540804]
[1739555584956,0.72056,2775.2,2775.1,3.2078]
[1739555585149,3.2078,2775.2,2774.7,3.2078]
[1739555585356,3.2078,2775.2,2774.2,3.2078]
[1739555585357,3.45408245,2775.0,2774.2,3.2078]
[1739555585654,40.8,2775.1,2774.2,3.92861]
[1739555585655,0.72072,2774.6,2774.2,3.92861]
[1739555585848,3.45408245,2774.7,2774.2,3.92861]
[1739555585849,3.45408245,2774.7,2774.2,3.2078]
[1739555586048,3.45408245,2774.4,2774.2,3.2078]
[1739555586260,3.45408245,2774.4,2774.1,0.00540804]
[1739555586555,3.45949049,2774.7,2774.1,0.00540804]
[1739555586754,0.00540804,2774.7,2774.6,0.72071]
[1739555587056,40.8,2775.1,2775.0,0.72061]
[1739555587253,40.8,2775.1,2774.6,5.2478]
[1739555587459,40.8,2775.1,2774.6,3.2078]
[1739555587653,3.45408245,2775.0,2774.6,3.2078]
[1739555587854,40.8,2775.1,2774.2,3.2078]
[1739555588050,40.8,2775.1,2774.6,3.2078]
[1739555588256,0.00356738,2774.9,2774.6,3.2078]
[1739555588456,0.00356738,2774.9,2774.8,0.72066]
[1739555588753,40.80356738,2774.9,2774.6,3.2078]
[1739555589062,0.72075,2774.5,2774.1,0.00540804]
[1739555589362,3.45408245,2774.7,2774.1,0.00540804]
[1739555589561,3.143,2774.8,2774.1,0.00540804]
[1739555590263,1.1,2774.8,2774.1,0.00540804]
[1739555590452,1.1,2774.8,2774.5,0.72072]
[1739555590654,3.21136738,2774.9,2774.3,3.2078]
[1739555590855,3.21136738,2774.9,2774.7,0.72068]
[1739555591156,0.00356738,2774.9,2774.8,0.72066]
[1739555591656,7.38e-06,2774.9,2774.8,0.72066]
[1739555592260,7.38e-06,2774.9,2774.8,10.17474245]
[1739555593358,7.38e-06,2774.9,2774.8,0.72066]
[1739555594658,7.38e-06,2774.9,2774.8,10.17474245]
[1739555595765,2.1118,2776.6,2776.5,0.72022]
[1739555596062,5.2338,2777.1,2776.3,3.2078]
[1739555596063,0.7201,2777.0,2776.3,3.2078]
[1739555596550,0.72014,2776.8,2776.3,3.2078]
[1739555596757,3.45408245,2776.8,2776.4,0.00540804]
[1739555596956,40.8,2776.9,2776.4,0.00540804]
[1739555597161,40.8,2776.9,2776.8,0.72014]
[1739555597565,40.8,2776.9,2776.4,0.00540804]
[1739555597762,40.8,2776.9,2776.7,0.72015]
[1739555597958,40.8,2776.9,2776.4,0.00540804]
[1739555598162,40.8,2776.9,2776.6,0.72017]
[1739555598360,41.52013,2776.9,2776.6,0.72017]
[1739555598555,40.8,2776.9,2776.4,0.00540804]
[1739555598757,40.8,2776.9,2776.7,0.72017]
[1739555598958,40.8,2776.9,2776.8,0.72014]
[1739555600070,40.8,2776.9,2776.4,0.00540804]
[1739555600269,40.8,2776.9,2776.8,0.72014]
[1739555600966,40.8,2776.9,2776.4,0.00540804]
[1739555601170,40.8,2776.9,2776.8,0.72014]
[1739555601765,41.52013,2776.9,2776.4,0.00540804]
[1739555602070,41.52013,2776.9,2776.7,0.72016]
[1739555602369,41.52013,2776.9,2776.6,0.72018]
[1739555602664,1.0866,2777.2,2776.4,0.00540804]
[1739555602665,3.45408245,2776.7,2776.4,0.00540804]
[1739555602870,3.45408245,2776.7,2776.6,0.72019]
[1739555603075,3.2078,2776.8,2776.7,0.72017]
[1739555603362,40.8,2776.8,2776.7,0.72017]
[1739555603567,40.8,2776.8,2776.6,0.72019]
[1739555603772,0.72021,2776.6,2776.4,0.72564804]
[1739555604070,0.72022,2776.5,2776.4,0.00540804]
[1739555604267,3.45408245,2776.7,2776.4,0.00540804]
[1739555604569,5.2108,2776.9,2776.4,0.00540804]
[1739555604872,40.8,2776.5,2776.4,0.72564804]
[1739555605370,41.52022,2776.5,2776.4,0.72564804]
[1739555605570,41.52022,2776.5,2776.4,0.00540804]
[1739555606571,46.8,2776.5,2775.4,3.2078]
[1739555606863,0.72047,2775.6,2775.4,0.7205]
[1739555607065,3.45408245,2775.8,2775.1,3.2078]
[1739555607269,2.006,2776.0,2775.9,0.72037]
[1739555607464,3.45408245,2776.1,2775.9,0.72037]
[1739555607665,0.00540804,2776.2,2775.7,0.00540804]
[1739555607865,0.00540804,2776.2,2776.1,0.72032]
[1739555608663,0.00540804,2776.2,2775.8,0.72038]
[1739555608866,0.00540804,2776.2,2775.7,3.21320804]
[1739555608867,3.45408245,2776.1,2775.7,3.21320804]
[1739555609069,4.17448245,2775.8,2775.7,0.00540804]
[1739555609565,0.72053,2775.3,2775.1,0.72058]
[1739555609768,0.72062,2775.0,2774.8,3.92845]
[1739555609966,3.2078,2775.4,2774.8,0.72066]
[1739555609967,40.8,2774.9,2774.8,0.72066]
[1739555610166,40.8,2774.9,2774.7,3.2078]
[1739555610366,40.8,2774.9,2774.8,0.72066]
[1739555610770,40.8,2774.9,2774.7,3.2078]
[1739555611067,40.8,2774.9,2774.8,0.72066]
[1739555611874,44.25408245,2774.9,2774.7,3.2078]
[1739555612075,0.72071,2774.6,2774.5,0.00540804]
[1739555612771,0.72069,2774.7,2774.5,0.00540804]
[1739555612966,2.0639,2774.8,2774.6,0.7207]
[1739555613167,2.0639,2774.8,2774.5,3.21320804]
[1739555613168,2.78456,2774.8,2774.5,0.72613804]
[1739555613370,0.72071,2774.6,2774.5,0.00540804]
[1739555613573,4.17479245,2774.6,2774.5,0.00540804]
[1739555613969,0.7207,2774.7,2774.5,0.00540804]
[1739555614171,0.72071,2774.6,2774.5,0.00540804]
[1739555615274,3.45408245,2774.6,2773.9,3.2078]
[1739555615776,0.72075,2774.5,2774.2,0.72081]
[1739555615967,3.45408245,2774.6,2773.9,3.2078]
[1739555616163,3.2078,2774.5,2773.6,3.2078]
[1739555616568,3.45408245,2774.6,2774.0,0.72084]
[1739555616569,0.00540804,2774.3,2774.0,0.72084]
[1739555616767,0.72085,2774.1,2773.8,0.72630804]
[1739555617175,0.72085,2774.1,2773.8,0.00540804]
[1739555617374,0.72084,2774.2,2773.9,0.72088]
[1739555617571,0.72082,2774.2,2773.8,0.00540804]
[1739555617877,0.00540804,2774.3,2774.2,0.72082]
[1739555618174,0.00540804,2774.3,2773.8,0.00540804]
[1739555618175,0.72619804,2774.3,2774.1,0.72083]
[1739555618369,0.72619804,2774.3,2773.9,0.72088]
[1739555618569,0.00540804,2774.3,2774.0,0.72086]
[1739555618975,0.00540804,2774.3,2773.8,0.00540804]
[1739555619472,0.00540804,2774.3,2774.1,0.72083]
[1739555619775,0.72620804,2774.3,2774.0,0.72085]
[1739555619977,0.72083,2774.2,2774.0,0.72085]
[1739555620178,0.72621804,2774.3,2774.1,0.72084]
[1739555620375,0.72621804,2774.3,2774.1,0.72083]
[1739555620577,0.00540804,2774.3,2773.9,3.2078]
[1739555620777,0.72620804,2774.3,2774.1,0.72083]
[1739555621375,0.00540804,2774.3,2773.9,3.2078]
[1739555621575,49.44188245,2774.9,2774.2,3.2078]
[1739555621576,40.8,2774.9,2774.2,3.2078]
[1739555621776,4.2484,2775.7,2775.0,0.72059]
[1739555621970,4.2484,2775.7,2775.0,0.72061]
[1739555621971,1.80114,2775.6,2775.0,0.72061]
[1739555622176,3.2078,2775.4,2774.6,3.2078]
[1739555622474,1.80128,2775.4,2774.7,0.72068]
[1739555622773,1.80128,2775.4,2774.6,3.2078]
[1739555622774,3.2078,2775.2,2774.6,3.2078]
[1739555622974,0.72069,2774.7,2774.6,3.2078]
[1739555623174,1.0826,2775.1,2774.6,3.2078]
[1739555623369,0.72061,2775.0,2774.6,3.2078]
[1739555623573,1.80319,2775.1,2774.6,3.2078]
[1739555623779,1.0826,2775.1,2774.6,3.2078]
[1739555624078,0.72064,2774.9,2774.7,0.72067]
[1739555624476,1.0826,2775.1,2774.6,3.2078]
[1739555624674,1.80319,2775.1,2774.9,0.72061]
[1739555625082,0.72061,2775.0,2774.8,0.72065]
[1739555625580,1.8032,2775.1,2774.9,0.72063]
[1739555625787,1.0826,2775.1,2774.6,3.2078]
[1739555625977,0.72065,2774.9,2774.7,0.72067]
[1739555626176,1.0826,2775.1,2774.6,3.2078]
[1739555626671,0.72069,2774.7,2774.6,3.2078]
[1739555626881,2.88407,2775.1,2774.6,3.9285]
[1739555626882,0.72067,2774.8,2774.6,3.9285]
[1739555627380,40.8,2774.7,2774.6,3.9285]
[1739555627573,40.8,2774.7,2774.6,3.2078]
[1739555627973,41.52069,2774.7,2774.6,3.2078]
[1739555628483,0.7208,2774.3,2774.2,3.2078]
[1739555628679,44.25408245,2774.7,2774.2,3.2078]
[1739555628981,0.72073,2774.6,2774.2,3.2078]
[1739555629170,47.46188245,2774.7,2773.8,0.00540804]
[1739555629378,0.72086,2774.1,2773.8,0.00540804]
[1739555629583,0.72086,2774.1,2773.8,0.72630804]
[1739555629881,3.2078,2774.3,2773.8,0.72630804]
[1739555630073,0.72085,2774.1,2773.8,0.00540804]
[1739555630377,0.7208,2774.3,2774.1,0.72082]
[1739555630582,6.2315,2774.6,2774.0,0.72085]
[1739555630783,0.72081,2774.3,2774.0,0.72085]
[1739555631082,0.72081,2774.3,2774.1,0.72084]
[1739555631583,6.2315,2774.6,2773.8,0.00540804]
[1739555631787,0.72083,2774.2,2774.0,0.72087]
[1739555632081,0.72077,2774.4,2774.2,0.72081]
[1739555632682,0.72083,2774.2,2774.0,0.72085]
[1739555632874,4.2715,2774.6,2773.8,0.00540804]
[1739555633273,0.72074,2774.5,2773.8,0.72630804]
[1739555633484,0.72086,2774.1,2773.8,0.72629804]
[1739555633687,3.2078,2774.3,2773.8,0.00540804]
[1739555634078,0.72089,2773.9,2773.8,0.00540804]
[1739555634275,0.72089,2773.9,2773.8,0.72631804]
[1739555634480,0.72089,2773.9,2773.8,0.00540804]
[1739555635085,4.3194,2774.3,2773.8,0.00540804]
[1739555635283,0.72088,2774.0,2773.8,0.00540804]
[1739555635482,0.72089,2774.0,2773.8,0.72631804]
[1739555635788,0.72089,2773.9,2773.8,0.72631804]
[1739555635989,0.72089,2773.9,2773.8,0.00540804]
[1739555636286,41.52089,2773.9,2773.8,0.00540804]
[1739555636483,6.12143,2774.3,2773.8,0.00540804]
[1739555636784,0.72089,2773.9,2773.8,0.00540804]
[1739555636979,41.52089,2773.9,2773.8,0.00540804]
[1739555637993,41.52089,2773.9,2773.8,0.72632804]
[1739555638386,41.52089,2773.9,2773.8,0.00540804]
[1739555639887,40.8,2773.9,2773.8,0.00540804]
[1739555640083,40.8,2773.9,2773.8,0.72632804]
[1739555640281,41.52089,2773.9,2773.8,0.72632804]
[1739555641086,41.52089,2773.9,2773.8,0.00540804]
[1739555641790,41.52089,2773.9,2773.8,0.72632804]
[1739555642192,41.52089,2773.9,2773.8,0.00540804]
[1739555642592,41.52089,2773.9,2773.8,0.72632804]
[1739555643892,40.8,2773.9,2773.8,0.72632804]
[1739555645692,4.2715,2774.6,2773.8,0.72632804]
[1739555645887,4.2715,2774.6,2773.9,3.2078]
[1739555645888,2.76022096,2774.2,2773.9,3.2078]
[1739555646190,0.72089,2773.9,2773.8,0.00540804]
[1739555646390,5.96802096,2773.9,2773.3,3.2078]
[1739555646690,2.76022096,2773.5,2773.3,3.2078]
[1739555646886,40.8,2773.4,2773.3,3.92883]
[1739555648091,0.72108,2773.2,2773.1,0.00540804]
[1739555648796,4.22,2773.3,2773.1,0.00540804]
[1739555648991,4.94105,2773.3,2773.1,0.00540804]
[1739555649296,0.72108,2773.2,2773.1,0.00540804]
[1739555649493,4.22,2773.3,2773.1,0.00540804]
[1739555649894,1.0122,2773.3,2773.1,0.00540804]
[1739555650588,1.73326,2773.3,2773.1,0.00540804]
[1739555650789,40.8,2773.4,2773.2,0.72108]
[1739555650991,3.21320804,2773.6,2773.1,0.00540804]
[1739555651195,0.00540804,2773.6,2773.2,3.2078]
[1739555651397,0.00540804,2773.6,2773.3,0.72103]
[1739555651593,40.80540804,2773.6,2773.1,0.00854979]
[1739555651792,0.72104,2773.4,2773.1,0.00854979]
[1739555651992,4.18137898,2773.2,2773.1,0.00854979]
[1739555653110,0.72122,2772.7,2772.5,3.2078]
[1739555653403,4.18148898,2772.8,2772.5,3.2078]
[1739555653602,4.18148898,2772.8,2772.5,3.92905]
[1739555653803,40.8,2772.7,2772.5,3.92905]
[1739555654004,40.8,2772.7,2772.5,3.2078]
[1739555654204,0.72123,2772.6,2772.5,3.2078]
[1739555654907,3.46029898,2772.8,2772.5,3.2078]
[1739555654908,0.72122,2772.7,2772.5,3.2078]
[1739555655103,40.8,2772.6,2772.5,3.2078]
[1739555655311,41.52123,2772.6,2772.5,3.2078]
[1739555656212,40.8,2772.6,2772.5,3.92906]
[1739555656413,40.8,2772.6,2772.5,3.2078]
[1739555656602,3.2078,2772.9,2772.5,3.92906]
[1739555656804,5.45639898,2773.1,2772.5,3.2078]
[1739555657002,0.72111,2773.1,2772.9,0.72114]
[1739555657207,3.46029898,2773.1,2772.6,0.72123]
[1739555657510,0.7212,2772.8,2772.5,3.92905]
[1739555658015,3.46029898,2773.1,2772.6,0.72122]
[1739555658016,0.72117,2772.9,2772.6,0.72122]
[1739555658513,0.72122,2772.7,2772.5,3.2078]
[1739555658712,3.46029898,2773.1,2772.5,3.2078]
[1739555658907,0.72123,2772.6,2772.5,3.2078]
[1739555660207,0.9809,2772.7,2772.3,0.00540804]
[1739555660411,0.72128,2772.4,2772.3,0.00540804]
[1739555661217,41.52128,2772.4,2772.3,0.00540804]
[1739555661518,40.8,2772.4,2772.3,0.00540804]
[1739555661707,41.52128,2772.4,2772.3,0.00540804]
[1739555663319,40.8,2772.4,2772.3,0.00540804]
[1739555663519,40.8,2772.4,2772.3,0.72671804]
[1739555663714,0.9809,2772.7,2772.3,0.00540804]
[1739555664023,0.72128,2772.4,2772.3,0.00540804]
[1739555664216,41.52128,2772.4,2772.3,0.00540804]
[1739555665523,40.8,2772.4,2772.3,0.72671804]
[1739555666021,41.52128,2772.4,2772.3,0.00540804]
[1739555666922,40.8,2772.4,2772.3,0.00540804]
[1739555667216,40.8,2772.4,2772.3,0.72670804]
[1739555667422,41.52126,2772.4,2772.3,0.00540804]
[1739555667622,40.8,2772.4,2772.3,0.00540804]
[1739555667825,40.8,2772.4,2772.3,0.72664804]
[1739555668322,41.52122,2772.4,2772.3,0.00540804]
[1739555668809,40.8,2772.4,2772.3,0.00540804]
[1739555669321,40.8,2772.4,2772.3,3.93444804]
[1739555670321,41.52121,2772.4,2772.3,3.21320804]
[1739555670626,48.18930898,2772.4,2772.3,0.00540804]
[1739555670826,44.98150898,2772.4,2772.3,0.00540804]
[1739555671030,48.18930898,2772.4,2772.3,0.00540804]
[1739555671721,47.49294863,2772.4,2772.3,0.00540804]
[1739555672721,53.49294863,2772.4,2771.7,3.2078]
[1739555672922,2.76393863,2771.8,2771.3,3.2078]
[1739555673125,0.72147,2771.4,2771.3,3.2078]
[1739555673327,0.72143,2771.6,2771.4,0.72147]
[1739555673623,40.8,2771.5,2771.4,0.72145]
[1739555674327,40.8,2771.5,2771.3,3.2078]
[1739555674328,0.00540804,2771.7,2771.3,3.2078]
[1739555674715,40.8,2771.5,2771.3,3.2078]
[1739555674920,0.00540804,2771.7,2771.6,0.72142]
[1739555675119,3.2078,2772.7,2771.6,5.01134]
[1739555675322,3.2078,2772.7,2772.0,3.2078]
[1739555675521,0.72112,2772.8,2772.5,0.72117]
[1739555675828,0.72112,2772.8,2772.1,0.997]
[1739555675829,40.8,2773.0,2772.3,3.2078]
[1739555676031,0.72115,2772.7,2772.4,0.7212]
[1739555676230,40.8,2773.0,2772.3,3.2078]
[1739555676423,0.00540804,2772.9,2772.4,0.72121]
[1739555676634,0.00540804,2772.9,2772.8,0.72111]
[1739555676826,1.905,2774.0,2772.9,0.72108]
[1739555676827,0.72091,2773.6,2772.9,0.72108]
[1739555677121,0.72091,2773.6,2773.3,3.2078]
[1739555677326,0.72091,2773.6,2773.2,0.72101]
[1739555677526,2.0999,2773.9,2773.0,5.2161]
[1739555677827,0.72098,2773.4,2773.0,5.93714]
[1739555678030,0.72629804,2773.7,2773.3,0.72098]
[1739555678324,6.67832947,2773.7,2773.2,0.00540804]
[1739555678622,0.72098,2773.3,2773.2,0.00540804]
[1739555678824,3.46512143,2773.4,2773.2,0.00540804]
[1739555679125,0.72091,2773.6,2773.2,0.72639804]
[1739555679329,40.8,2773.3,2773.2,0.72639804]
[1739555679523,40.8,2773.3,2773.2,0.00540804]
[1739555679725,40.8,2773.3,2773.2,0.72641804]
[1739555679926,40.8,2773.3,2773.2,0.00540804]
[1739555680126,40.8,2773.3,2773.2,0.72641804]
[1739555681025,40.8,2773.3,2773.2,0.00540804]
[1739555682734,41.52098,2773.3,2773.2,0.00540804]
[1739555683841,40.8,2773.3,2773.2,0.00540804]
[1739555684136,40.8,2773.3,2773.2,0.72641804]
[1739555684829,0.00540804,2773.7,2773.6,0.7209]
[1739555685131,3.2078,2775.2,2773.7,1.80218]
[1739555685330,3.2078,2775.2,2773.6,5.39937855]
[1739555685331,40.8,2775.1,2774.4,1.80174]
[1739555685637,5.44632143,2775.8,2774.6,3.2078]
[1739555685836,0.72042,2775.5,2775.1,0.72051]
[1739555686138,40.8,2775.4,2775.0,3.2078]
[1739555686638,40.8,2775.4,2775.3,0.72046]
[1739555686832,0.00540804,2775.5,2775.0,3.2078]
[1739555687035,0.00540804,2775.5,2775.3,0.72046]
[1739555687230,0.00540804,2775.5,2775.4,0.72043]
[1739555687433,3.2078,2776.2,2775.3,3.2078]
[1739555687633,3.2078,2776.2,2775.8,0.72033]
[1739555687827,40.8,2776.1,2775.8,0.72033]
[1739555688229,40.8,2776.1,2775.6,3.2078]
[1739555688435,40.8,2776.1,2775.8,0.72031]
[1739555688633,40.80540804,2776.1,2775.6,3.2078]
[1739555689040,41.52567804,2776.1,2775.6,3.92816]
[1739555689436,40.80540804,2776.1,2775.8,0.72033]
[1739555690139,40.80540804,2776.1,2775.6,3.2078]
[1739555690634,40.80540804,2776.1,2775.8,0.72032]
[1739555691039,40.80540804,2776.1,2775.9,0.7203]
[1739555691241,40.80540804,2776.1,2775.6,3.2078]
[1739555692041,40.80540804,2776.1,2775.7,0.72034]
[1739555692042,41.52566804,2776.1,2775.7,0.72034]
[1739555692244,40.80540804,2776.1,2775.6,3.2078]
[1739555692440,40.80540804,2776.1,2775.8,0.72031]
[1739555692637,40.80540804,2776.1,2775.9,0.7203]
[1739555693232,40.80540804,2776.1,2775.6,3.2078]
[1739555693543,3.47052947,2776.1,2775.6,3.2078]
[1739555693738,6.67832947,2776.1,2775.6,3.2078]
[1739555693945,40.8,2775.7,2775.6,3.92816]
[1739555694340,40.8,2775.7,2775.5,0.7204]
[1739555694541,40.8,2775.7,2775.6,0.72038]
[1739555694937,40.8,2775.7,2775.5,0.72039]
[1739555695244,40.8,2775.7,2775.6,3.92818]
[1739555696040,0.00540804,2776.1,2776.0,0.72028]
[1739555696347,40.80540804,2776.1,2776.0,0.72028]
[1739555696941,0.00540804,2776.1,2776.0,0.72028]
[1739555697242,0.00226629,2776.1,2776.0,6.72028]
[1739555697545,0.7201,2776.7,2776.5,0.72014]
[1739555697738,40.8,2776.8,2776.3,3.2078]
[1739555697937,40.8,2776.8,2776.7,0.7201]
[1739555698134,1.79967,2777.6,2776.7,0.7201]
[1739555698135,3.46512143,2777.6,2776.7,3.2078]
[1739555698335,0.71994,2777.3,2777.0,0.72]
[1739555698850,41.5199,2777.5,2777.2,0.71995]
[1739555699146,41.5199,2777.5,2776.9,0.00540804]
[1739555699147,40.8,2777.5,2776.9,0.00540804]
[1739555699541,0.72001,2777.1,2776.9,0.00540804]
[1739555699738,44.0078,2777.5,2776.9,0.00540804]
[1739555699940,0.72002,2777.0,2776.9,0.00540804]
[1739555700246,0.72001,2777.1,2776.9,0.00540804]
[1739555700446,3.46512143,2777.3,2776.9,0.72544804]
[1739555700748,4.18508143,2777.3,2776.9,0.00540804]
[1739555701045,3.46512143,2777.3,2776.9,0.72545804]
[1739555701245,3.46512143,2777.3,2776.9,0.00540804]
[1739555701445,0.71998,2777.2,2776.9,0.72544804]
[1739555701846,41.5199,2777.5,2776.9,0.00540804]
[1739555702052,0.71996,2777.3,2777.0,0.72]
[1739555702241,40.8,2777.5,2777.0,0.72]
[1739555702442,3.2078,2777.4,2776.9,0.00540804]
[1739555702951,0.72002,2777.0,2776.9,0.00540804]
[1739555703452,0.72,2777.1,2776.9,0.72542804]
[1739555703651,40.8,2777.5,2777.1,0.71998]
[1739555703852,40.8,2777.5,2776.9,0.00540804]
[1739555704047,3.46512143,2777.3,2776.9,0.00540804]
[1739555704549,0.72001,2777.1,2776.9,0.72543804]
[1739555704747,0.72002,2777.0,2776.9,0.00540804]
[1739555705246,3.46512143,2777.3,2776.9,0.00540804]
[1739555705648,0.72001,2777.1,2776.9,0.72544804]
[1739555705850,3.46512143,2777.3,2776.9,0.72544804]
[1739555706154,0.72002,2777.0,2776.9,0.00540804]
[1739555706654,0.72002,2777.0,2776.9,0.72545804]
[1739555706851,1.0322,2777.2,2776.9,0.00540804]
[1739555707059,0.72002,2777.0,2776.9,0.72544804]
[1739555707354,1.0322,2777.2,2776.9,0.00540804]